bitfinex/quotes_BTCUSD_20250314
["timestamp","ask_amount","ask_price","bid_price","bid_amount"]
[1741985040665,0.03040044,84463.0,84462.0,0.0003386]
[1741985040851,0.01856144,84463.0,84462.0,0.2371306]
[1741985042121,0.04375412,84463.0,84462.0,0.0003386]
[1741985042324,0.40149318,84463.0,84462.0,0.0003386]
[1741985042564,0.46133403,84463.0,84462.0,0.0003386]
[1741985042976,0.57147418,84463.0,84462.0,0.0003386]
[1741985043187,5e-07,84463.0,84462.0,0.0121776]
[1741985043811,5e-07,84463.0,84462.0,0.0003386]
[1741985044157,5e-07,84463.0,84462.0,0.0121776]
[1741985045187,0.018563,84463.0,84462.0,0.0121776]
[1741985046253,5e-07,84463.0,84462.0,0.0121776]
[1741985049378,0.01856257,84463.0,84462.0,0.0121776]
[1741985052815,0.01856257,84463.0,84462.0,0.0003386]
[1741985053042,0.03040157,84463.0,84462.0,0.0003386]
[1741985053566,0.01856257,84463.0,84462.0,0.0003386]
[1741985054380,0.01856257,84463.0,84462.0,0.0121776]
[1741985055008,0.01856257,84463.0,84462.0,0.0003386]
[1741985055188,0.03040157,84463.0,84462.0,0.0003386]
[1741985055419,0.26719157,84463.0,84462.0,0.0003386]
[1741985056888,0.01856257,84463.0,84462.0,0.0121776]
[1741985057021,0.01856257,84463.0,84462.0,0.2489696]
[1741985057222,0.01856257,84463.0,84462.0,0.0003386]
[1741985059839,0.01856257,84463.0,84462.0,0.0121776]
[1741985060483,0.01856257,84463.0,84462.0,0.2489696]
[1741985061508,5e-07,84463.0,84462.0,0.2489696]
[1741985061686,5e-07,84463.0,84462.0,0.3744696]
[1741985064349,0.01856249,84463.0,84462.0,0.3744696]
[1741985070210,0.01856249,84463.0,84462.0,0.2970696]
[1741985072011,0.01856249,84463.0,84462.0,0.0003386]
[1741985072984,5e-07,84463.0,84462.0,0.0003386]
[1741985073156,5e-07,84463.0,84462.0,0.0121776]
[1741985073584,5e-07,84463.0,84462.0,0.0003386]
[1741985074429,5e-07,84463.0,84462.0,0.2371306]
[1741985075451,0.2367905,84463.0,84462.0,0.0003386]
[1741985075661,0.25535324,84463.0,84462.0,0.0003386]
[1741985075861,0.01856324,84463.0,84462.0,0.0003386]
[1741985076117,0.26719224,84463.0,84462.0,0.0003386]
[1741985076318,0.01856324,84463.0,84462.0,0.0003386]
[1741985078851,0.26719224,84463.0,84462.0,0.0003386]
[1741985080093,0.01184,84453.0,84442.0,0.011842]
[1741985080261,0.01184,84453.0,84444.0,0.23684]
[1741985080262,0.23683,84449.0,84444.0,0.23684]
[1741985080461,0.248671,84449.0,84445.0,0.236838]
[1741985080659,0.248671,84449.0,84440.0,0.011842]
[1741985080863,0.01856533,84449.0,84447.0,0.236833]
[1741985082128,0.01856533,84449.0,84447.0,0.248674]
[1741985083363,0.01856533,84449.0,84447.0,0.236833]
[1741985084358,0.01856533,84449.0,84444.0,0.23684]
[1741985084593,0.01856533,84449.0,84445.0,0.236838]
[1741985085101,0.01856533,84449.0,84447.0,0.237172]
[1741985086051,0.01856533,84449.0,84447.0,0.000339]
[1741985086735,0.236832,84448.0,84447.0,0.000339]
[1741985086939,0.248673,84448.0,84447.0,0.000339]
[1741985087950,0.248673,84448.0,84443.0,0.236844]
[1741985091104,0.248677,84447.0,84441.0,0.23685]
[1741985091512,0.011841,84446.0,84441.0,0.23685]
[1741985092475,0.011842,84440.0,84429.0,0.0766]
[1741985092679,0.248703,84438.0,84430.0,0.011844]
[1741985092895,0.54869,84443.0,84436.0,0.236863]
[1741985093090,0.236852,84441.0,84435.0,0.011843]
[1741985093294,0.248693,84442.0,84436.0,0.236865]
[1741985093528,0.23685,84442.0,84436.0,0.236865]
[1741985093705,0.54869,84443.0,84436.0,0.248708]
[1741985093957,0.536848,84443.0,84437.0,0.011843]
[1741985094092,0.236852,84441.0,84436.0,0.248708]
[1741985094702,0.3,84449.0,84441.0,0.011842]
[1741985094909,0.3,84449.0,84447.0,0.236832]
[1741985095702,0.31856599,84449.0,84448.0,0.011841]
[1741985095906,0.01856599,84449.0,84446.0,0.236835]
[1741985096680,0.31856599,84449.0,84446.0,0.236835]
[1741985096891,0.01856599,84449.0,84448.0,0.011841]
[1741985098431,0.01873559,84449.0,84448.0,0.011841]
[1741985099489,0.01873559,84449.0,84448.0,0.059141]
[1741985100713,0.01873559,84449.0,84448.0,0.135841]
[1741985100914,0.01873559,84449.0,84448.0,0.0473]
[1741985101387,0.01873559,84449.0,84442.0,0.0787]
[1741985101591,0.236857,84439.0,84432.0,0.1228]
[1741985101796,0.011842,84445.0,84438.0,0.011843]
[1741985101797,0.248687,84444.0,84438.0,0.011843]
[1741985101935,0.248705,84438.0,84436.0,0.0003392]
[1741985102139,0.011843,84437.0,84436.0,0.0003392]
[1741985102595,0.26727314,84438.0,84436.0,0.0003392]
[1741985102596,0.01856814,84438.0,84436.0,0.2372022]
[1741985102802,0.01856814,84438.0,84437.0,0.011843]
[1741985103011,0.25542814,84438.0,84436.0,0.0003392]
[1741985103230,0.26727114,84438.0,84436.0,0.0003392]
[1741985103436,0.01856814,84438.0,84436.0,0.0003392]
[1741985103628,0.01856814,84438.0,84437.0,0.011843]
[1741985103858,0.01856814,84438.0,84437.0,0.088343]
[1741985104064,0.01856814,84438.0,84437.0,0.0765]
[1741985104234,0.03041114,84438.0,84436.0,0.0003392]
[1741985104839,0.011843,84437.0,84436.0,0.0003392]
[1741985106780,0.01856814,84438.0,84437.0,0.011843]
[1741985108029,0.01856814,84438.0,84436.0,0.2372042]
[1741985108473,0.01856814,84438.0,84436.0,0.0003392]
[1741985108669,0.03041114,84438.0,84436.0,0.0003392]
[1741985109107,0.01856814,84438.0,84436.0,0.0003392]
[1741985109320,0.01856814,84438.0,84437.0,0.011843]
[1741985109819,0.01856814,84438.0,84437.0,0.248705]
[1741985110028,0.25543014,84438.0,84436.0,0.0003392]
[1741985110660,0.25542814,84438.0,84436.0,0.0003392]
[1741985110802,0.01856814,84438.0,84436.0,0.0003392]
[1741985111204,0.01856814,84438.0,84437.0,0.248705]
[1741985114300,0.01856814,84438.0,84436.0,0.0121822]
[1741985114462,0.01856814,84438.0,84436.0,0.2372022]
[1741985114661,0.01856814,84438.0,84437.0,0.011843]
[1741985115317,0.01856814,84438.0,84436.0,0.0003392]
[1741985115547,0.011843,84437.0,84436.0,0.0003392]
[1741985116473,0.02458282,84437.0,84436.0,0.0003392]
[1741985117634,0.40232332,84437.0,84436.0,0.0003392]
[1741985117853,0.32458282,84437.0,84436.0,0.0003392]
[1741985118055,0.33912367,84437.0,84436.0,0.0003392]
[1741985120897,0.36639383,84437.0,84436.0,0.0003392]
[1741985125797,0.50283383,84437.0,84436.0,0.0003392]
[1741985126155,0.36639383,84437.0,84436.0,0.0003392]
[1741985126403,0.50283383,84437.0,84436.0,0.0003392]
[1741985126607,0.56166886,84437.0,84436.0,2e-07]
[1741985126782,5.80864186,84437.0,84436.0,2e-07]
[1741985126997,0.69810886,84437.0,84436.0,2e-07]
[1741985127197,0.6795381,84437.0,84436.0,2e-07]
[1741985127363,0.6845381,84437.0,84436.0,2e-07]
[1741985127567,0.7302381,84437.0,84436.0,2e-07]
[1741985129581,0.60566307,84437.0,84436.0,2e-07]
[1741985129784,0.62423652,84437.0,84436.0,2e-07]
[1741985130557,0.44209652,84437.0,84436.0,2e-07]
[1741985130712,0.57853652,84437.0,84436.0,2e-07]
[1741985132272,0.20283652,84437.0,84436.0,2e-07]
[1741985132676,0.50283652,84437.0,84436.0,2e-07]
[1741985132919,0.2378521,84437.0,84436.0,2e-07]
[1741985133215,0.5378521,84437.0,84436.0,2e-07]
[1741985133722,0.6090921,84437.0,84436.0,2e-07]
[1741985133869,0.5378521,84437.0,84436.0,2e-07]
[1741985134733,0.4014121,84437.0,84436.0,2e-07]
[1741985134935,0.5378521,84437.0,84436.0,2e-07]
[1741985135395,0.5380217,84437.0,84436.0,2e-07]
[1741985136058,0.50300612,84437.0,84436.0,2e-07]
[1741985153358,0.70384612,84437.0,84436.0,2e-07]
[1741985153881,0.73527267,84437.0,84436.0,2e-07]
[1741985154078,0.73527267,84437.0,84421.0,1e-06]
[1741985154079,0.56329085,84422.0,84421.0,1e-06]
[1741985154291,5.81022385,84422.0,84421.0,1e-06]
[1741985154527,5.92979888,84422.0,84421.0,1e-06]
[1741985155346,6.00603888,84422.0,84421.0,1e-06]
[1741985155844,6.05563888,84422.0,84421.0,1e-06]
[1741985158079,6.07421511,84422.0,84421.0,1e-06]
[1741985159164,6.09851755,84422.0,84421.0,1e-06]
[1741985159384,2.24518455,84422.0,84421.0,1e-06]
[1741985159586,2.07218455,84422.0,84421.0,1e-06]
[1741985159995,2.06718455,84422.0,84421.0,1e-06]
[1741985160227,2.07218455,84422.0,84421.0,1e-06]
[1741985163604,2.66678455,84422.0,84421.0,1e-06]
[1741985163766,2.37408455,84422.0,84421.0,1e-06]
[1741985164409,2.31888455,84422.0,84421.0,1e-06]
[1741985165921,2.18248455,84422.0,84421.0,1e-06]
[1741985166132,2.31888455,84422.0,84421.0,1e-06]
[1741985167030,0.63458985,84402.0,84401.0,1e-06]
[1741985167204,0.63458985,84402.0,84384.0,0.0494]
[1741985167205,0.548858,84385.0,84384.0,0.1298]
[1741985169974,0.56177381,84385.0,84384.0,0.1298]
[1741985170178,0.31291581,84385.0,84384.0,0.378661]
[1741985171367,0.33149593,84385.0,84384.0,0.378661]
[1741985171589,0.31858012,84385.0,84384.0,0.378661]
[1741985172513,0.31858012,84385.0,84384.0,0.1298]
[1741985174866,0.33043012,84385.0,84384.0,0.1298]
[1741985175053,0.31858012,84385.0,84384.0,0.1298]
[1741985175461,0.31858012,84385.0,84384.0,0.14165]
[1741985175845,0.01858012,84385.0,84384.0,0.14165]
[1741985176249,0.248816,84400.0,84395.0,0.1275]
[1741985176454,0.54882,84399.0,84395.0,0.1275]
[1741985176627,0.011848,84398.0,84395.0,0.1275]
[1741985176831,0.3,84396.0,84395.0,0.1275]
[1741985177467,0.31268578,84396.0,84395.0,0.1275]
[1741985177920,0.01268578,84396.0,84395.0,0.1275]
[1741985178219,0.548825,84397.0,84395.0,0.1275]
[1741985178848,0.3,84397.0,84395.0,0.1275]
[1741985179054,0.01285078,84397.0,84395.0,0.1275]
[1741985179453,0.3,84400.0,84395.0,0.364479]
[1741985179656,0.43636,84411.0,84406.0,0.236948]
[1741985179878,0.3,84408.0,84407.0,0.08]
[1741985180090,0.311847,84408.0,84407.0,0.08]
[1741985180423,0.33042384,84408.0,84407.0,0.08]
[1741985181277,0.3429549,84408.0,84407.0,0.08]
[1741985183999,0.3431246,84408.0,84407.0,0.08]
[1741985184179,0.3312776,84408.0,84407.0,0.08]
[1741985184857,0.248826,84396.0,84395.0,0.0479394]
[1741985185061,0.548826,84396.0,84395.0,0.0479394]
[1741985185765,0.548826,84396.0,84395.0,0.0003394]
[1741985186165,0.3,84396.0,84395.0,0.0121884]
[1741985186588,0.3,84396.0,84395.0,0.0003394]
[1741985186783,0.3,84396.0,84395.0,0.0121884]
[1741985186983,0.3,84396.0,84395.0,0.0616884]
[1741985187577,0.3,84396.0,84395.0,0.0498394]
[1741985188006,0.34496748,84396.0,84395.0,0.0003394]
[1741985188228,0.55256748,84396.0,84395.0,4e-07]
[1741985188621,0.48132748,84396.0,84395.0,4e-07]
[1741985189666,0.55256748,84396.0,84395.0,4e-07]
[1741985190007,0.56145684,84396.0,84395.0,4e-07]
[1741985192598,0.49021684,84396.0,84395.0,4e-07]
[1741985192800,0.60979187,84396.0,84395.0,4e-07]
[1741985194787,0.011851,84381.0,84376.0,0.0423394]
[1741985194988,0.011851,84380.0,84376.0,0.0423394]
[1741985195591,0.03043371,84380.0,84376.0,0.0423394]
[1741985195806,0.011851,84379.0,84376.0,0.0423394]
[1741985196155,0.248881,84378.0,84376.0,0.0423394]
[1741985196694,0.011851,84377.0,84376.0,0.0423394]
[1741985197310,0.26745871,84380.0,84376.0,0.0423394]
[1741985197311,0.01858271,84380.0,84377.0,0.248882]
[1741985197523,0.01858271,84380.0,84378.0,0.328177]
[1741985197924,0.248876,84380.0,84378.0,0.0793]
[1741985198127,0.011851,84379.0,84378.0,0.0793]
[1741985200117,0.237021,84381.0,84378.0,0.0793]
[1741985200516,0.01858196,84379.0,84378.0,0.0793]
[1741985202882,0.26745796,84379.0,84378.0,0.0793]
[1741985204463,0.26745796,84379.0,84376.0,0.0423394]
[1741985204464,0.248882,84377.0,84376.0,0.0423394]
[1741985204688,0.248882,84377.0,84373.0,0.000339]
[1741985204689,0.24889,84374.0,84373.0,0.000339]
[1741985205831,0.24889,84375.0,84373.0,0.000339]
[1741985206329,0.011851,84374.0,84373.0,0.000339]
[1741985206697,0.02447304,84374.0,84373.0,0.000339]
[1741985207976,0.01262204,84374.0,84373.0,0.000339]
[1741985208174,0.01858276,84374.0,84373.0,0.000339]
[1741985209392,0.03105027,84374.0,84373.0,0.000339]
[1741985209562,0.04290127,84374.0,84373.0,0.000339]
[1741985213535,0.34290127,84374.0,84373.0,0.000339]
[1741985222976,0.548894,84373.0,84372.0,2e-07]
[1741985223178,0.64473485,84373.0,84372.0,2e-07]
[1741985224225,0.78105485,84373.0,84372.0,2e-07]
[1741985225954,0.79964159,84373.0,84372.0,2e-07]
[1741985227224,0.91921662,84373.0,84372.0,2e-07]
[1741985228672,0.99045662,84373.0,84372.0,2e-07]
[1741985230207,0.87088159,84373.0,84372.0,2e-07]
[1741985230628,0.78958159,84373.0,84372.0,2e-07]
[1741985232639,0.65326159,84373.0,84372.0,2e-07]
[1741985232829,0.78958159,84373.0,84372.0,2e-07]
[1741985236726,0.77099485,84373.0,84372.0,2e-07]
[1741985237110,0.89656988,84373.0,84372.0,2e-07]
[1741985237610,1.64948988,84373.0,84372.0,2e-07]
[1741985239082,1.65348988,84373.0,84372.0,2e-07]
[1741985239521,1.67207683,84373.0,84372.0,2e-07]
[1741985239722,0.548923,84363.0,84358.0,0.000339]
[1741985239919,0.56346385,84363.0,84358.0,0.000339]
[1741985240786,0.58205122,84363.0,84358.0,0.000339]
[1741985241699,0.58705122,84363.0,84362.0,0.0013386]
[1741985241901,0.59305122,84363.0,84362.0,0.0013386]
[1741985243219,0.72937122,84363.0,84362.0,0.0013386]
[1741985244412,0.84894625,84363.0,84362.0,0.0013386]
[1741985254657,0.72937122,84363.0,84362.0,0.0013386]
[1741985254969,0.59305122,84363.0,84362.0,0.0013386]
[1741985255171,0.72933122,84363.0,84362.0,0.0013386]
[1741985260666,0.71074385,84363.0,84362.0,0.0013386]
[1741985263468,0.72932979,84363.0,84362.0,0.0013386]
[1741985265819,0.84890482,84363.0,84362.0,0.0013386]
[1741985267595,0.72932979,84363.0,84362.0,0.0013386]
[1741985268595,2.58142979,84363.0,84362.0,0.0013386]
[1741985268799,1.26812979,84363.0,84362.0,0.0013386]
[1741985269020,1.11602979,84363.0,84362.0,0.0013386]
[1741985269247,1.01812979,84363.0,84362.0,0.0013386]
[1741985269464,0.72932979,84363.0,84362.0,0.0013386]
[1741985277259,0.72928979,84363.0,84362.0,0.0013386]
[1741985280492,0.72928979,84363.0,84362.0,0.2842116]
[1741985280493,0.32958594,84363.0,84362.0,0.2842116]
[1741985280712,0.32958594,84363.0,84362.0,0.3770646]
[1741985280858,0.32554085,84363.0,84362.0,0.3770646]
[1741985281070,0.32554085,84363.0,84362.0,0.3652116]
[1741985281493,0.32054085,84363.0,84362.0,0.3642116]
[1741985281905,0.32454085,84363.0,84362.0,0.3642116]
[1741985282324,0.31854085,84363.0,84362.0,0.3642116]
[1741985282665,0.32054085,84363.0,84362.0,0.1271386]
[1741985282975,0.33239385,84363.0,84362.0,0.1271386]
[1741985283535,0.35097905,84363.0,84362.0,0.1271386]
[1741985284309,0.33912605,84363.0,84362.0,0.1271386]
[1741985285136,0.33912605,84363.0,84362.0,0.3642116]
[1741985286364,0.32054085,84363.0,84362.0,0.3642116]
[1741985286974,0.006,84363.0,84362.0,0.3760646]
[1741985288220,0.002,84363.0,84362.0,0.3760646]
[1741985288618,0.003,84363.0,84362.0,0.3760646]
[1741985288944,0.003,84363.0,84362.0,0.3642116]
[1741985289102,0.02158351,84363.0,84362.0,0.3642116]
[1741985289302,0.01858351,84363.0,84362.0,0.3642116]
[1741985289715,0.58204736,84363.0,84362.0,0.1271386]
[1741985289973,0.6426226,84363.0,84362.0,0.0471386]
[1741985290117,0.6426226,84363.0,84362.0,0.0013386]
[1741985290315,0.58404736,84363.0,84362.0,0.0013386]
[1741985290945,0.33512436,84363.0,84362.0,0.0013386]
[1741985291181,0.34697736,84363.0,84362.0,0.0013386]
[1741985291809,0.34497736,84363.0,84362.0,0.0003386]
[1741985292036,0.34797736,84363.0,84362.0,0.0003386]
[1741985292534,0.34497736,84363.0,84362.0,0.0003386]
[1741985292733,0.34997736,84363.0,84362.0,0.0013386]
[1741985293032,0.35297736,84363.0,84362.0,0.0013386]
[1741985294457,0.47255239,84363.0,84362.0,0.0013386]
[1741985294671,0.35297736,84363.0,84362.0,0.0013386]
[1741985297711,0.34112436,84363.0,84362.0,0.0013386]
[1741985298348,0.31454085,84362.0,84355.0,0.22052109]
[1741985298674,0.56346885,84362.0,84355.0,0.22052109]
[1741985298801,0.31454085,84362.0,84360.0,0.237076]
[1741985299007,0.3,84362.0,84361.0,0.248929]
[1741985299205,0.008,84363.0,84362.0,0.0789]
[1741985299831,0.005,84363.0,84362.0,0.0789]
[1741985300031,0.005,84363.0,84362.0,0.315973]
[1741985300237,0.011853,84365.0,84362.0,0.0759]
[1741985300581,0.248913,84367.0,84362.0,0.0709]
[1741985300961,0.3,84369.0,84367.0,0.237057]
[1741985301165,0.3,84369.0,84362.0,0.0709]
[1741985301396,0.01858466,84366.0,84362.0,0.0709]
[1741985301677,0.01858466,84366.0,84365.0,0.237063]
[1741985301898,0.01858466,84366.0,84365.0,0.296816]
[1741985302393,0.01858466,84366.0,84365.0,0.293816]
[1741985303088,0.02158466,84366.0,84365.0,0.293816]
[1741985303481,0.02158466,84366.0,84365.0,0.372516]
[1741985304062,0.003,84366.0,84365.0,0.372516]
[1741985304866,0.0001695,84373.0,84371.0,0.237048]
[1741985305258,0.0001695,84373.0,84371.0,0.236048]
[1741985305460,0.0001695,84373.0,84371.0,0.3713]
[1741985306372,0.0031695,84372.0,84371.0,0.3713]
[1741985307233,0.02175106,84372.0,84371.0,0.3713]
[1741985310726,0.02175106,84372.0,84371.0,0.3733]
[1741985311313,0.01875106,84372.0,84371.0,0.3733]
[1741985311688,0.01975106,84372.0,84371.0,0.3733]
[1741985311913,0.01875106,84372.0,84371.0,0.3733]
[1741985312379,0.01975106,84372.0,84371.0,0.3733]
[1741985312671,0.01975106,84372.0,84371.0,0.3713]
[1741985312812,0.01975106,84372.0,84371.0,0.3733]
[1741985314288,0.01975106,84372.0,84371.0,0.373639]
[1741985324310,0.01975106,84372.0,84371.0,1.873639]
[1741985331644,0.01975106,84372.0,84371.0,0.373639]
[1741985335582,0.01975106,84372.0,84371.0,1.873639]
[1741985343065,0.01975106,84372.0,84371.0,0.373639]
[1741985346865,5.6e-07,84373.0,84372.0,0.011852]
[1741985347018,2.6e-07,84374.0,84373.0,0.372894]
[1741985347220,9.6e-07,84376.0,84375.0,0.248888]
[1741985347442,9.6e-07,84376.0,84375.0,1.872888]
[1741985348204,9.6e-07,84376.0,84375.0,1.90996637]
[1741985348420,9.6e-07,84376.0,84375.0,1.872888]
[1741985348643,9.6e-07,84376.0,84375.0,1.90995115]
[1741985349704,9.6e-07,84376.0,84375.0,1.91195115]
[1741985349905,9.6e-07,84376.0,84375.0,1.91695115]
[1741985350106,9.6e-07,84376.0,84375.0,1.94116851]
[1741985350489,9.6e-07,84376.0,84375.0,1.90410536]
[1741985352178,9.6e-07,84376.0,84375.0,1.94113588]
[1741985352307,9.6e-07,84376.0,84375.0,1.90410536]
[1741985352536,9.6e-07,84376.0,84375.0,1.94112637]
[1741985353342,9.6e-07,84376.0,84375.0,1.93412637]
[1741985353770,9.6e-07,84376.0,84375.0,1.94412637]
[1741985354171,9.6e-07,84376.0,84375.0,1.93812637]
[1741985354608,9.6e-07,84376.0,84375.0,0.44412637]
[1741985355012,9.6e-07,84376.0,84375.0,1.94412637]
[1741985356423,9.6e-07,84376.0,84375.0,1.90710536]
[1741985359490,7.4e-07,84381.0,84380.0,0.248873]
[1741985359763,0.0001697,84408.0,84395.0,0.248829]
[1741985360209,0.01874602,84396.0,84395.0,0.248829]
[1741985361029,0.01974602,84396.0,84395.0,0.248829]
[1741985362348,0.01974602,84396.0,84395.0,0.250829]
[1741985365163,0.01224251,84412.0,84411.0,0.236935]
[1741985365503,0.248762,84418.0,84407.0,0.011847]
[1741985365743,0.01857622,84416.0,84411.0,0.236934]
[1741985366448,0.08948977,84413.0,84411.0,0.236934]
[1741985366883,0.001,84412.0,84411.0,0.236934]
[1741985367066,0.01454085,84412.0,84411.0,0.236934]
[1741985367441,0.01454085,84412.0,84411.0,0.24878]
[1741985368969,0.01857445,84423.0,84417.0,0.236919]
[1741985369172,0.01857445,84423.0,84421.0,0.236907]
[1741985369534,0.01454085,84422.0,84421.0,0.236907]
[1741985370379,0.01454085,84422.0,84419.0,0.236907]
[1741985370715,0.01454085,84422.0,84420.0,0.236908]
[1741985371855,0.01471035,84422.0,84421.0,0.011845]
[1741985372022,0.0001695,84422.0,84421.0,0.011845]
[1741985374915,0.0001695,84422.0,84407.0,0.077]
[1741985375150,0.23694,84410.0,84404.0,0.236954]
[1741985375329,0.236935,84412.0,84405.0,0.23695]
[1741985375554,0.01454085,84411.0,84407.0,0.236945]
[1741985377020,0.01454085,84419.0,84418.0,0.236916]
[1741985377688,0.01454085,84420.0,84418.0,0.236916]
[1741985377857,0.01454085,84420.0,84419.0,0.011845]
[1741985378161,0.01471035,84422.0,84420.0,0.248755]
[1741985378362,0.01471035,84422.0,84420.0,0.23691]
[1741985379550,0.01454085,84418.0,84413.0,0.236929]
[1741985379767,0.01454085,84421.0,84417.0,0.236917]
[1741985380763,0.01471035,84422.0,84418.0,0.236914]
[1741985381459,0.01471035,84422.0,84420.0,0.248753]
[1741985381660,0.01471035,84422.0,84421.0,0.011845]
[1741985382213,0.0001695,84422.0,84421.0,0.011845]
[1741985383790,0.0001695,84422.0,84420.0,0.248753]
[1741985384130,0.0001695,84422.0,84421.0,0.011845]
[1741985389984,0.0001695,84422.0,84421.0,0.012845]
[1741985390481,0.0001695,84422.0,84421.0,0.015845]
[1741985391526,0.01874024,84422.0,84421.0,0.015845]
[1741985393558,0.01874024,84422.0,84421.0,0.004]
[1741985394189,0.01874024,84422.0,84421.0,0.012845]
[1741985394610,0.01874024,84422.0,84421.0,0.013845]
[1741985395042,0.01874024,84422.0,84421.0,0.012845]
[1741985395380,0.01874024,84422.0,84421.0,0.014845]
[1741985396045,0.01874024,84422.0,84421.0,0.013845]
[1741985396462,0.01874024,84422.0,84421.0,0.002]
[1741985396863,0.01874024,84422.0,84421.0,0.013845]
[1741985398931,0.01874024,84422.0,84421.0,0.002]
[1741985399561,0.03328109,84422.0,84421.0,0.002]
[1741985399760,0.34512609,84422.0,84421.0,0.002]
[1741985400186,0.088945,84422.0,84421.0,0.002]
[1741985400761,0.0771,84422.0,84421.0,0.002]
[1741985401368,0.32585,84422.0,84421.0,0.002]
[1741985402678,0.0956735,84422.0,84421.0,0.002]
[1741985404897,0.0304185,84422.0,84421.0,0.002]
[1741985407447,0.0305881,84422.0,84421.0,0.002]
[1741985409117,0.34512895,84422.0,84421.0,0.002]
[1741985409336,0.60696895,84422.0,84421.0,0.002]
[1741985409539,0.58839545,84422.0,84421.0,0.002]
[1741985410311,0.011846,84413.0,84412.0,0.0003388]
[1741985410526,0.56331685,84413.0,84412.0,0.0003388]
[1741985412087,0.26331685,84413.0,84412.0,0.0003388]
[1741985412269,0.28189264,84413.0,84412.0,0.0003388]
[1741985412465,0.28289264,84413.0,84412.0,0.0003388]
[1741985412850,0.38287853,84413.0,84412.0,0.0003388]
[1741985413786,0.28289264,84413.0,84412.0,0.0003388]
[1741985414521,0.03142179,84413.0,84412.0,0.0003388]
[1741985414774,0.26835179,84413.0,84412.0,0.0003388]
[1741985420478,0.56835179,84413.0,84412.0,0.0003388]
[1741985422709,0.66009264,84413.0,84412.0,0.0003388]
[1741985422865,0.70346109,84413.0,84412.0,0.0003388]
[1741985423068,3.43131685,84413.0,84412.0,0.0003388]
[1741985423273,2.92661685,84413.0,84412.0,0.0003388]
[1741985423496,1.33911685,84413.0,84412.0,0.0003388]
[1741985423737,1.29961685,84413.0,84412.0,0.0003388]
[1741985424209,1.09111685,84413.0,84412.0,0.0003388]
[1741985424981,1.09011685,84413.0,84412.0,0.0003388]
[1741985425385,1.09411685,84413.0,84412.0,0.0003388]
[1741985425886,1.1166957,84413.0,84412.0,0.0003388]
[1741985426707,0.248858,84385.0,84384.0,0.1246]
[1741985426892,0.011851,84378.0,84377.0,0.0802]
[1741985427196,0.248879,84378.0,84377.0,0.0802]
[1741985428508,0.248879,84378.0,84377.0,0.0812]
[1741985428668,0.248879,84378.0,84377.0,0.0802]
[1741985429087,0.249879,84378.0,84377.0,0.0802]
[1741985429489,0.001,84378.0,84377.0,0.0822]
[1741985429691,0.001,84378.0,84377.0,0.094051]
[1741985429910,0.01958102,84378.0,84377.0,0.094051]
[1741985430109,0.01958102,84378.0,84377.0,0.092051]
[1741985430311,0.01958102,84378.0,84377.0,0.093051]
[1741985431737,0.01958102,84378.0,84377.0,1.593051]
[1741985432583,0.02636312,84378.0,84377.0,1.593051]
[1741985432785,0.02636312,84378.0,84377.0,0.093051]
[1741985432995,0.02636312,84378.0,84377.0,0.0812]
[1741985433766,0.0077821,84378.0,84377.0,0.0812]
[1741985434767,0.0077821,84378.0,84377.0,0.093051]
[1741985434971,0.001,84378.0,84377.0,0.093051]
[1741985435619,0.00778696,84378.0,84377.0,0.093051]
[1741985436334,0.00778696,84378.0,84377.0,0.09423609]
[1741985436546,0.00778696,84378.0,84377.0,0.14393594]
[1741985436697,0.0120155,84413.0,84377.0,0.14393594]
[1741985436698,0.0001695,84413.0,84409.0,0.011847]
[1741985437037,0.0001695,84413.0,84412.0,0.323879]
[1741985439546,0.0001695,84413.0,84412.0,0.312033]
[1741985440041,0.0001695,84413.0,84412.0,0.316033]
[1741985440242,0.0001695,84413.0,84412.0,0.0791]
[1741985444510,0.01874224,84413.0,84412.0,0.090946]
[1741985449466,0.248722,84432.0,84425.0,0.236896]
[1741985449672,0.011843,84431.0,84425.0,0.236896]
[1741985449907,0.03281984,84431.0,84426.0,0.236891]
[1741985450119,0.02097684,84431.0,84427.0,0.236889]
[1741985450294,0.02097684,84431.0,84428.0,0.236886]
[1741985451395,0.23689,84428.0,84423.0,0.2369]
[1741985451607,0.0204346,84427.0,84421.0,0.236907]
[1741985451796,0.2573256,84427.0,84421.0,0.236907]
[1741985452000,0.0085906,84427.0,84423.0,0.2369]
[1741985453011,0.02716289,84427.0,84425.0,0.236894]
[1741985453210,0.01857229,84427.0,84425.0,0.236894]
[1741985453417,0.01957229,84427.0,84425.0,0.236894]
[1741985453959,0.01857229,84427.0,84425.0,0.236894]
[1741985454134,0.01874189,84427.0,84425.0,0.236894]
[1741985454340,0.00857368,84426.0,84425.0,0.236894]
[1741985455074,0.00857368,84426.0,84424.0,0.236898]
[1741985455700,0.01157368,84426.0,84424.0,0.236898]
[1741985456369,0.01257368,84426.0,84424.0,0.236898]
[1741985457388,0.01557368,84426.0,84424.0,0.236898]
[1741985459854,0.01296434,84426.0,84424.0,0.236898]
[1741985461659,0.011845,84423.0,84417.0,0.236917]
[1741985461857,0.011845,84423.0,84414.0,0.236925]
[1741985461858,0.011845,84420.0,84414.0,0.236925]
[1741985462171,0.24287543,84422.0,84417.0,0.236917]
[1741985462357,0.236913,84419.0,84409.0,0.236938]
[1741985462562,0.011845,84420.0,84404.0,0.236953]
[1741985462563,0.011846,84412.0,84404.0,0.236953]
[1741985462769,0.236919,84417.0,84412.0,0.236931]
[1741985463192,0.00592524,84416.0,84405.0,0.011847]
[1741985463372,0.00592524,84416.0,84414.0,0.236924]
[1741985463753,0.31454085,84422.0,84417.0,0.236916]
[1741985464483,0.24876,84419.0,84412.0,0.236932]
[1741985464875,0.24876,84419.0,84413.0,0.236928]
[1741985465060,0.24876,84419.0,84415.0,0.236922]
[1741985465291,0.3,84420.0,84415.0,0.236922]
[1741985465440,0.236915,84419.0,84414.0,0.236925]
[1741985465636,0.236918,84418.0,84412.0,0.236932]
[1741985466239,0.3,84417.0,84414.0,0.236926]
[1741985466634,0.3,84417.0,84416.0,0.236921]
[1741985467264,0.001,84418.0,84416.0,0.236921]
[1741985467643,0.001,84418.0,84412.0,0.236931]
[1741985467990,0.248764,84417.0,84412.0,0.236931]
[1741985468194,0.002,84417.0,84413.0,0.236928]
[1741985468395,0.31857385,84419.0,84418.0,0.236916]